bitfinex/quotes_ETHUSD_20240721
["timestamp","ask_amount","ask_price","bid_price","bid_amount"]
[1721545784618,0.59804229,3490.7,3490.5,2.8649]
[1721545785985,0.59804229,3490.8,3490.1,8.80983375]
[1721545786172,0.59804229,3490.7,3490.2,0.89098337]
[1721545786498,0.59804229,3490.7,3490.2,3.6691]
[1721545786679,3.08224229,3490.6,3490.2,2.8651]
[1721545786883,3.08224229,3490.6,3490.1,0.1]
[1721545787499,3.08224229,3490.6,3490.1,2.9652]
[1721545787881,3.46302229,3490.5,3490.1,0.1]
[1721545788066,0.59804229,3490.4,3490.1,0.1]
[1721545789470,0.59804229,3490.5,3490.1,0.1]
[1721545790513,0.59804229,3490.4,3490.1,0.1]
[1721545791477,0.59804229,3490.4,3490.1,0.904]
[1721545791682,3.08224229,3490.6,3490.1,1.29094]
[1721545791880,3.08224229,3490.6,3490.1,0.904]
[1721545793273,3.08224229,3490.6,3490.1,3.76918]
[1721545793473,0.59804229,3490.5,3490.1,3.76918]
[1721545793790,0.59804229,3490.5,3490.1,2.96518]
[1721545793998,0.59804229,3490.4,3490.1,2.96518]
[1721545795082,0.59804229,3490.4,3490.1,0.1]
[1721545795283,0.59804229,3490.3,3490.1,0.1]
[1721545795601,0.59804229,3490.2,3490.1,0.1]
[1721545798002,0.89848478,3490.3,3490.1,0.1]
[1721545798678,0.59848987,3490.2,3490.1,0.1]
[1721545800387,0.15477126,3490.2,3490.1,0.1]
[1721545800591,0.43939497,3490.2,3490.1,0.1]
[1721545800994,4.04773712,3490.2,3490.1,0.1]
[1721545801180,10.52757453,3490.2,3490.1,0.1]
[1721545801386,10.8291229,3490.2,3490.1,0.1]
[1721545801692,9.33261582,3490.2,3490.1,0.1]
[1721545805382,10.024007,3490.2,3490.1,0.1]
[1721545806208,5.66345582,3490.2,3490.1,0.1]
[1721545806385,6.85945062,3490.2,3490.1,0.1]
[1721545807618,5.66345582,3490.2,3490.1,0.1]
[1721545807816,6.85945062,3490.2,3490.1,0.1]
[1721545808385,5.66345582,3490.2,3490.1,0.1]
[1721545810121,6.85945062,3490.2,3490.1,0.1]
[1721545811238,5.66345582,3490.2,3490.1,0.1]
[1721545811611,5.37883211,3490.2,3490.1,0.1]
[1721545813526,6.12045912,3490.2,3490.1,0.1]
[1721545813835,3.76155912,3490.2,3490.1,0.1]
[1721545814045,0.59758918,3490.2,3490.1,0.1]
[1721545814201,2.69034073,3490.6,3490.1,2.96524]
[1721545814202,0.59758918,3490.6,3490.1,2.96524]
[1721545814543,0.59758918,3490.6,3490.2,0.386924]
[1721545815345,0.59758918,3490.6,3490.1,2.96524]
[1721545818001,0.59758918,3490.6,3490.2,2.86515]
[1721545818838,0.59758918,3490.6,3490.1,0.1]
[1721545818839,3.46243918,3490.6,3490.1,0.1]
[1721545819138,0.59758918,3490.5,3490.1,0.1]
[1721545819507,0.59758918,3490.4,3490.1,0.1]
[1721545820204,3.46260918,3490.4,3490.1,0.1]
[1721545820430,2.86516,3490.2,3490.1,0.1]
[1721545820741,3.46260918,3490.4,3490.1,0.1]
[1721545820951,0.59758918,3490.3,3490.1,0.1]
[1721545821827,3.46266918,3490.3,3490.1,0.1]
[1721545822647,0.59758918,3490.2,3490.1,0.1]
[1721545823329,3.46266918,3490.3,3490.1,0.1]
[1721545824158,7.13190918,3490.2,3490.1,0.1]
[1721545824310,7.88496461,3490.2,3490.1,0.1]
[1721545824505,7.88468252,3490.2,3490.1,0.1]
[1721545824725,6.68896981,3490.2,3490.1,0.1]
[1721545825048,8.18351065,3490.2,3490.1,0.1]
[1721545825258,9.5366514,3490.2,3490.1,0.1]
[1721545826032,8.04211056,3490.2,3490.1,0.1]
[1721545827743,1.35023048,3490.2,3490.1,0.1]
[1721545828067,0.89671863,3490.2,3490.1,0.1]
[1721545828245,3.89671863,3490.3,3490.1,0.1]
[1721545828560,0.89671863,3490.3,3490.1,0.1]
[1721545828763,0.59790731,3490.2,3490.1,0.406534]
[1721545829051,0.59790731,3490.3,3490.1,0.406534]
[1721545829204,0.59790731,3490.2,3490.1,0.406534]
[1721545830142,0.59790731,3490.3,3490.1,2.900034]
[1721545833356,1.350114,3490.6,3490.1,2.900034]
[1721545833357,0.59790731,3490.6,3490.2,5.73032]
[1721545833526,0.59790731,3490.7,3490.5,0.804]
[1721545833729,3.0,3491.0,3490.5,0.804]
[1721545833730,0.59790731,3490.8,3490.7,5.20345]
[1721545834019,0.59790731,3491.0,3490.7,5.20345]
[1721545834467,0.59790731,3491.0,3490.8,2.86465]
[1721545835267,0.59790731,3491.0,3490.7,2.3387]
[1721545835559,0.59790731,3490.9,3490.6,2.86483]
[1721545836329,0.59790731,3490.9,3490.7,0.887251]
[1721545836861,0.59790731,3490.9,3490.5,0.804]
[1721545837065,0.59790731,3490.9,3490.6,2.86482]
[1721545837856,0.59790731,3490.9,3490.5,0.804]
[1721545838658,0.59790731,3490.9,3490.6,2.86482]
[1721545839027,0.59790731,3490.9,3490.7,2.86473]
[1721545839361,0.89671863,3491.1,3490.7,3.751972]
[1721545839362,0.59790731,3491.1,3490.7,3.751972]
[1721545839745,0.59790731,3491.0,3490.7,0.887242]
[1721545840632,0.59790731,3491.1,3490.7,0.887242]
[1721545840840,0.59790731,3491.0,3490.6,2.86483]
[1721545841850,0.59790731,3491.1,3490.6,2.86483]
[1721545843254,0.59790731,3491.1,3490.5,0.804]
[1721545843888,0.59790731,3491.1,3490.5,3.6689]
[1721545844092,0.59790731,3491.1,3490.7,2.86475]
[1721545844257,0.59790731,3491.1,3490.8,2.86466]
[1721545844466,0.59790731,3491.2,3490.9,3.66858]
[1721545844866,0.59790731,3491.4,3491.1,3.66842]
[1721545845253,0.89671863,3491.6,3491.1,3.66842]
[1721545845254,0.59790731,3491.5,3491.1,3.66842]
[1721545849256,0.59790731,3491.6,3491.2,2.86433]
[1721545849454,0.59790731,3491.6,3491.1,1.69117]
[1721545849687,0.59790731,3491.7,3491.1,4.55559]
[1721545849957,0.59790731,3491.6,3491.1,3.66842]
[1721545850597,0.59790731,3491.7,3491.3,0.804]
[1721545850767,0.59790731,3491.7,3491.3,3.66826]
[1721545851095,0.59790731,3491.8,3491.3,3.66826]
[1721545851395,0.59790731,3491.9,3491.3,3.66826]
[1721545851595,0.59790731,3491.9,3491.3,4.555398]
[1721545852156,0.59790731,3491.9,3491.4,2.86417]
[1721545852360,0.59790731,3491.9,3491.5,0.804]
[1721545852550,0.59790731,3492.0,3491.5,3.66808]
[1721545854495,0.59790731,3492.0,3491.5,0.804]
[1721545854700,3.46159731,3492.0,3491.5,0.804]
[1721545854861,0.59790731,3492.0,3491.5,0.804]
[1721545855061,6.46150731,3492.1,3491.5,0.804]
[1721545855689,6.46150731,3492.1,3491.6,2.2825]
[1721545858093,0.59790731,3492.2,3491.7,0.804]
[1721545858298,0.59790731,3492.2,3491.7,3.66792]
[1721545858497,3.76007863,3492.4,3491.7,3.66792]
[1721545858498,0.59790731,3492.3,3491.7,3.66792]
[1721545858710,3.46126731,3492.4,3491.7,3.66792]
[1721545859559,0.59790731,3492.4,3492.1,0.804]
[1721545859780,3.64438067,3492.8,3492.1,0.804]
[1721545859781,0.59790731,3492.5,3492.1,0.804]
[1721545859990,0.59790731,3492.6,3492.1,0.804]
[1721545860373,3.46110731,3492.6,3492.1,0.804]
[1721545861329,2.8632,3492.6,3492.1,0.804]
[1721545862966,2.8632,3492.6,3492.2,2.3531]
[1721545863177,0.59790731,3492.7,3492.3,0.804]
[1721545863376,2.86295,3492.9,3492.5,0.804]
[1721545863602,3.0,3493.0,3492.5,0.804]
[1721545863763,5.86287,3493.0,3492.5,0.804]
[1721545863962,4.12499159,3493.0,3492.5,0.804]
[1721545865433,2.86295,3492.9,3492.5,0.804]
[1721545866115,2.86295,3492.9,3492.3,3.66736]
[1721545866530,2.86315,3492.7,3491.9,9.13453375]
[1721545866822,2.86315,3492.7,3492.2,0.804]
[1721545866975,2.8632,3492.6,3492.2,0.804]
[1721545867178,2.86308,3492.8,3492.2,0.804]
[1721545867376,2.86311,3492.7,3492.2,0.804]
[1721545868327,2.8632,3492.6,3492.2,0.804]
[1721545868529,2.86342,3492.4,3492.0,0.804]
[1721545870124,2.8632,3492.6,3492.0,0.804]
[1721545870325,2.86328,3492.5,3492.0,0.804]
[1721545871824,2.86331,3492.5,3492.0,0.804]
[1721545872336,2.86331,3492.5,3492.0,1.69248]
[1721545874298,2.86331,3492.5,3492.0,0.804]
[1721545875613,2.86331,3492.5,3492.2,0.804]
[1721545877136,3.46107731,3492.7,3491.9,5.21685]
[1721545877137,2.86337,3492.4,3492.0,0.804]
[1721545877913,3.75976863,3492.8,3492.2,0.804]
[1721545877914,3.46103731,3492.7,3492.2,0.804]
[1721545879641,3.46103731,3492.7,3491.9,2.3531]
[1721545879642,3.46103731,3492.7,3492.4,0.804]
[1721545879847,2.86313,3492.7,3492.4,0.804]
[1721545880952,0.59790731,3492.8,3492.4,0.804]
[1721545881120,3.46093731,3492.8,3492.4,0.804]
[1721545882564,0.59790731,3492.8,3492.4,0.804]
[1721545882718,0.59790731,3492.8,3492.6,0.804]
[1721545883054,0.59790731,3493.0,3492.6,0.804]
[1721545883949,0.89671863,3493.2,3492.6,0.804]
[1721545883950,0.59790731,3493.1,3492.6,0.804]
[1721545884123,0.59790731,3493.1,3492.5,5.14202]
[1721545884324,0.59790731,3493.1,3492.5,5.94602]
[1721545884549,2.86288,3493.0,3492.3,2.86343]
[1721545884755,2.86288,3493.0,3492.5,0.804]
[1721545884921,2.86288,3493.0,3492.2,2.2788]
[1721545884922,3.46085731,3492.9,3492.2,2.2788]
[1721545885126,0.59790731,3492.7,3491.9,2.2788]
[1721545885325,0.59790731,3492.7,3491.8,6.27083375]
[1721545885326,2.86352,3492.2,3491.8,6.27083375]
[1721545885634,0.59790731,3492.3,3491.7,0.804]
[1721545886243,3.46126731,3492.4,3491.7,3.66791]
[1721545887367,0.59790731,3492.4,3491.9,0.804]
[1721545887924,0.59790731,3492.4,3491.9,3.66776]
[1721545888131,3.46119731,3492.5,3491.9,2.86376]
[1721545888352,0.59790731,3492.5,3492.0,2.86368]
[1721545888665,0.89671863,3492.6,3492.0,2.86368]
[1721545888666,3.59790731,3492.6,3492.1,5.14239]
[1721545888907,0.59790731,3492.6,3492.2,2.86351]
[1721545889028,1.19558067,3492.9,3492.2,2.86351]
[1721545889029,0.59790731,3492.8,3492.2,2.86351]
[1721545889224,0.59790731,3492.8,3492.3,2.86342]
[1721545890067,0.59790731,3492.7,3492.3,2.86342]
[1721545890730,0.59790731,3492.6,3492.3,2.86342]
[1721545890946,0.59790731,3492.7,3492.3,2.86338]
[1721545892068,0.59790731,3492.6,3492.2,0.86728884]
[1721545892286,0.59790731,3492.6,3492.1,2.2788]
[1721545892426,0.59790731,3492.6,3491.9,2.86374]
[1721545892427,0.59790731,3492.5,3491.9,2.86374]
[1721545893056,0.59790731,3492.5,3492.0,2.86366]
[1721545893241,3.46111731,3492.6,3492.0,3.682878]
[1721545893442,0.59790731,3492.5,3492.0,3.682878]
[1721545893658,0.59790731,3492.5,3492.2,2.86351]
[1721545893852,0.59790731,3492.6,3492.2,2.86351]
[1721545894538,0.59790731,3492.6,3492.3,2.86343]
[1721545894854,0.59790731,3492.7,3492.3,5.9826628]
[1721545896934,0.59790731,3492.7,3492.4,2.86335]
[1721545898428,0.59790731,3492.6,3492.4,2.86335]
[1721545899910,0.59790731,3492.6,3492.3,0.6546328]
[1721545900080,0.59790731,3492.6,3492.2,2.8635]
[1721545900409,0.59790731,3492.5,3492.2,2.8635]
[1721545901401,0.59790731,3492.6,3492.2,2.8635]
[1721545901563,0.59790731,3492.6,3492.3,2.86343]
[1721545902376,0.59790731,3492.5,3492.3,2.86343]
[1721545902567,0.59790731,3492.5,3492.3,3.7645228]
[1721545904321,0.59790731,3492.5,3492.4,2.86336]
[1721545909535,0.59790731,3492.6,3492.4,2.86336]
[1721545909721,0.5991808,3492.5,3492.4,2.86336]
[1721545910305,0.5991808,3492.5,3492.3,0.9010928]
[1721545910523,0.5991808,3492.5,3492.3,3.7645228]
[1721545911715,0.5991808,3492.5,3491.8,5.18924]
[1721545911895,0.5991808,3492.4,3491.6,7.7641314]
[1721545912094,0.5991808,3492.3,3491.7,2.8639]
[1721545912349,0.5991808,3492.2,3491.8,1.58174314]
[1721545913916,0.5991808,3492.2,3491.8,4.44557314]
[1721545915530,0.5991808,3492.2,3491.8,1.58174314]
[1721545915718,0.5991808,3492.2,3491.6,2.864]
[1721545916300,0.5991808,3492.1,3491.6,2.864]
[1721545919654,0.5991808,3492.1,3491.4,2.86417]
[1721545919838,2.3398,3492.2,3491.1,2.86442]
[1721545919839,2.3398,3491.7,3491.1,2.86442]
[1721545920158,2.3398,3491.7,3490.9,5.79066759]
[1721545920159,0.5991808,3491.6,3491.3,0.804]
[1721545920448,0.5991808,3491.5,3491.3,0.804]
[1721545921154,0.5991808,3491.4,3491.3,0.804]
[1721545921356,0.5991808,3491.4,3491.0,2.86446]
[1721545921357,0.5991808,3491.4,3490.8,2.86466]
[1721545921660,3.4632808,3491.5,3491.0,0.804]
[1721545922013,3.4632808,3491.5,3490.8,2.86466]
[1721545922342,2.86418,3491.4,3490.8,2.86466]
[1721545922718,3.4634408,3491.3,3490.7,7.15806875]
[1721545923049,2.86426,3491.3,3490.7,7.15806875]
[1721545923235,3.4634408,3491.3,3490.7,7.15806875]
[1721545923650,1.93,3491.1,3490.1,2.19459694]
[1721545923815,6.10167863,3490.2,3490.1,0.1]
[1721545924026,9.55529951,3490.2,3490.1,0.1]
[1721545924230,11.22487884,3490.2,3490.1,0.1]
[1721545924432,11.96583309,3490.2,3490.1,0.1]
[1721545924668,13.43151221,3490.2,3490.1,0.1]
[1721545924833,12.69504804,3490.2,3490.1,0.1]
[1721545925026,16.75449216,3490.2,3490.1,0.1]
[1721545925441,16.29541238,3490.2,3490.1,0.1]
[1721545926436,15.99662444,3490.2,3490.1,0.1]
[1721545927471,15.40095912,3490.2,3490.1,0.1]
[1721545930666,12.53579912,3490.2,3490.1,0.1]
[1721545933877,9.67063912,3490.2,3490.1,0.1]
[1721545934027,8.20496,3490.2,3490.1,0.1]
[1721545934232,11.07012,3490.2,3490.1,0.1]
[1721545937098,2.86631,3488.8,3488.7,0.1]
[1721545937372,11.09083,3488.8,3488.7,0.1]
[1721545937533,11.64083,3488.8,3488.7,0.1]
[1721545937734,14.64083,3488.8,3488.7,0.1]
[1721545942672,2.86726,3487.7,3486.5,5.4003]
[1721545942888,2.86726,3487.7,3486.6,0.54003]
[1721545943186,2.8673,3487.6,3486.8,2.86789]
[1721545944207,2.8673,3487.6,3486.9,2.86786]
[1721545944486,2.86703,3488.0,3486.5,2.4003]
[1721545944642,2.86707,3487.9,3487.1,2.86764]
[1721545945240,2.86707,3487.9,3487.2,2.86761]
[1721545945550,2.86707,3487.9,3486.9,2.86787]
[1721545945551,2.86714,3487.8,3487.0,2.86775]
[1721545948452,2.86714,3487.8,3487.1,2.86769]
[1721545949203,2.86697,3488.0,3487.1,2.86769]
[1721545949408,2.86004223,3488.0,3487.1,2.86769]
[1721545949921,2.86681,3488.2,3487.2,2.86756]
[1721545950084,2.86681,3488.2,3487.4,2.86745]
[1721545950281,2.86665,3488.4,3487.6,2.86728]
[1721545950491,3.0,3488.3,3487.6,2.86728]
[1721545952424,5.86673,3488.3,3487.6,2.86728]
[1721545952923,6.740051,3488.3,3487.6,2.86728]
[1721545954287,2.86683,3488.2,3487.4,2.86745]
[1721545954705,2.86683,3488.2,3487.5,2.86736]
[1721545958694,2.86683,3488.2,3487.3,5.26784]
[1721545958907,2.86699,3488.0,3487.3,2.86754]
[1721545960520,2.86699,3488.0,3487.1,2.86771]
[1721545960521,2.86699,3488.0,3487.4,2.86745]
[1721545960724,5.86672,3488.3,3487.4,2.86745]
[1721545961109,2.8666,3488.5,3486.8,2.4352]
[1721545961328,2.8666,3488.5,3487.7,2.86714]
[1721545961495,0.80873,3488.4,3487.7,2.86714]
[1721545961835,7.43,3489.2,3488.0,2.86696]
[1721545961836,2.86633,3488.8,3488.0,2.86696]
[1721545962034,2.8664,3488.7,3488.0,2.86696]
[1721545963429,2.3542,3489.0,3487.6,2.3883]
[1721545963728,7.43,3489.8,3488.5,2.86654]
[1721545963729,2.86593,3489.3,3488.5,2.86654]
[1721545963939,2.86583,3489.4,3488.5,3.678694]
[1721545964156,2.86583,3489.4,3488.5,2.86654]
[1721545964356,2.86583,3489.4,3488.7,2.86636]
[1721545965952,3.0,3489.3,3488.7,2.86636]
[1721545966553,5.86591,3489.3,3488.5,2.86654]
[1721545968234,5.86591,3489.3,3488.6,2.86646]
[1721545969132,2.86598,3489.2,3488.2,2.8668]
[1721545969339,2.86624,3488.9,3488.2,2.8668]
[1721545969931,2.86611,3489.1,3488.3,2.86672]
[1721545970141,0.9840676,3489.0,3488.3,2.86672]
[1721545970959,3.8502176,3489.0,3488.3,2.86672]
[1721545976868,2.86598,3489.2,3488.2,2.8668]
[1721545977391,2.86598,3489.2,3488.5,2.86654]
[1721545977547,0.59566532,3489.4,3488.8,2.86625]
[1721545977752,3.0,3489.4,3488.8,2.86625]
[1721545978265,3.59566532,3489.4,3488.6,2.86646]
[1721545978464,1.56667118,3489.3,3488.6,2.86646]
[1721545979299,2.86599,3489.2,3488.6,2.86646]
[1721545979508,3.46165532,3489.2,3488.6,2.86646]
[1721545980863,0.59566532,3489.1,3488.6,2.86646]
[1721545981067,3.46165532,3489.2,3488.6,2.86646]
[1721545981367,0.59566532,3489.1,3488.6,2.86646]
[1721545982196,0.59566532,3489.1,3488.5,2.86655]
[1721545982361,5.23457712,3489.2,3488.5,2.86655]
[1721545982362,0.59566532,3489.0,3488.5,2.86655]
[1721545983504,0.59566532,3489.0,3488.6,2.86647]
[1721545985579,0.59566532,3489.1,3488.7,2.86637]
[1721545986582,0.59566532,3489.2,3488.8,2.8663]
[1721545990670,0.59566532,3489.1,3488.8,2.8663]
[1721545992079,0.59566532,3489.1,3488.6,2.86647]
[1721545992290,0.59566532,3489.0,3488.7,2.86639]
[1721545992482,0.59566532,3489.1,3488.7,2.86639]
[1721545992681,0.59566532,3489.0,3488.7,2.86639]
[1721545992870,1.77456629,3489.2,3488.7,2.86639]
[1721545992871,0.59566532,3489.1,3488.7,2.86639]
[1721545993596,0.59566532,3489.0,3488.7,2.86639]
[1721545994112,1.77456629,3489.2,3488.7,2.86639]
[1721545994113,0.59566532,3489.1,3488.7,2.86639]
[1721545994993,1.77456629,3489.2,3488.7,2.86639]
[1721545994994,0.59566532,3489.0,3488.7,2.86639]
[1721545995432,0.59566532,3488.9,3488.7,2.86639]
[1721545995728,0.59566532,3489.0,3488.7,2.86639]
[1721545996627,0.59566532,3489.0,3488.8,2.8663]
[1721545996788,0.59566532,3489.0,3488.9,2.86623]
[1721545996993,0.59566532,3489.1,3488.9,2.86623]
[1721545997615,0.59566532,3489.2,3488.9,2.86623]
[1721545997819,0.59566532,3489.3,3488.9,2.86623]
[1721545998427,0.59566532,3489.3,3489.1,2.86606]
[1721545999207,0.59566532,3489.4,3489.1,2.86606]
[1721546000105,0.59566532,3489.4,3489.2,2.86596]
[1721546002037,0.59566532,3489.4,3489.3,2.8659]
[1721546002493,0.59566532,3489.5,3489.3,2.8659]
[1721546005568,0.89445326,3489.6,3489.5,5.73148]
[1721546005725,0.59791544,3489.7,3489.6,2.86565]
[1721546005925,0.89445326,3489.9,3489.7,2.86557]
[1721546006124,0.59792217,3489.8,3489.7,2.86557]
[1721546006730,0.89445326,3489.8,3489.7,2.86557]
[1721546006928,1.19428412,3490.0,3489.7,2.86557]
[1721546006929,0.89445326,3489.9,3489.7,2.86557]
[1721546007251,0.89445326,3489.8,3489.7,2.86557]
[1721546008041,0.8970545,3489.8,3489.7,2.86557]
[1721546008442,1.19428412,3489.9,3489.7,2.86557]
[1721546008443,0.8970545,3489.9,3489.7,2.86557]
[1721546008747,0.59804064,3489.8,3489.7,2.86557]
[1721546009300,0.59804064,3489.8,3489.7,5.73114]
[1721546009436,0.59797019,3490.0,3489.9,2.86541]
[1721546009636,0.59797019,3490.0,3489.9,5.73082]
[1721546009939,0.59797019,3490.1,3490.0,5.73064]
[1721546010440,0.59797019,3490.2,3490.1,2.86524]
[1721546011460,8.02797019,3490.3,3490.2,2.86516]
[1721546012063,7.43,3490.3,3490.2,2.86516]
[1721546012263,0.59762225,3490.3,3490.2,2.86516]
[1721546012551,0.59762225,3490.4,3490.2,2.86516]
[1721546013176,0.59762225,3490.4,3490.3,2.86508]
[1721546013511,0.59762225,3490.4,3489.7,2.3783]
[1721546013512,0.59762225,3490.5,3490.4,2.865]
[1721546013790,0.8970545,3490.6,3490.4,2.865]
[1721546013791,0.59762225,3490.6,3490.4,2.865]
[1721546014479,0.59762225,3490.7,3490.4,2.865]
[1721546014785,0.59762225,3490.6,3490.4,2.865]
[1721546015390,3.2832545,3490.8,3490.1,2.86516]
[1721546015391,0.59762225,3490.7,3490.1,2.86516]
[1721546016087,0.59762225,3490.7,3490.3,2.86502]
[1721546017677,2.98382225,3490.8,3490.3,2.86502]
[1721546018189,0.59762225,3490.7,3490.3,2.86502]
[1721546018352,2.98382225,3490.8,3490.3,2.86502]
[1721546019980,6.94251834,3490.8,3490.1,2.86516]
[1721546020174,0.59762225,3490.7,3490.1,2.86516]
[1721546022458,6.34489609,3490.8,3490.1,2.86516]
[1721546022459,6.94251834,3490.8,3490.1,2.86516]
[1721546022647,0.59762225,3490.7,3490.1,2.86516]
[1721546022849,6.94251834,3490.8,3490.1,2.86516]
[1721546023252,6.94251834,3490.8,3490.2,2.86514]
[1721546023253,4.07778834,3490.8,3490.2,2.86514]
[1721546023453,0.59762225,3490.7,3490.2,2.86514]
[1721546023692,2.3862,3490.8,3490.2,2.86514]
[1721546023693,2.98382225,3490.8,3490.2,2.86514]
[1721546023850,0.59762225,3490.7,3490.2,2.86514]
[1721546024060,2.98382225,3490.8,3490.2,2.86514]
[1721546024766,0.59762225,3490.7,3490.0,2.86532]
[1721546025070,0.59762225,3490.7,3490.1,2.86522]
[1721546025278,7.22892034,3490.8,3490.1,2.86522]
[1721546025590,3.46240225,3490.7,3490.1,2.86522]
[1721546028061,0.59762225,3490.7,3490.2,2.86515]
[1721546032826,2.98382225,3490.8,3490.2,2.86515]
[1721546033506,0.59762225,3490.7,3490.2,2.86515]
[1721546035515,0.59762225,3490.7,3490.3,2.86507]
[1721546035719,0.59762225,3490.8,3490.3,5.35117]
[1721546036223,4.05875412,3491.1,3490.3,5.35117]
[1721546036224,0.59762225,3490.9,3490.4,3.66998]
[1721546036436,2.3614,3491.2,3490.5,2.8649]
[1721546036437,0.59762225,3491.0,3490.5,2.8649]
[1721546036636,0.59762225,3491.1,3490.5,2.8649]
[1721546036983,0.59762225,3491.0,3490.5,2.8649]
[1721546040149,2.3614,3490.8,3490.1,2.86517]
[1721546040353,0.59762225,3490.7,3490.1,2.86517]
[1721546040641,0.59762225,3490.7,3490.2,2.86515]
[1721546041348,3.46238225,3490.7,3490.0,2.86528]
[1721546041647,0.59762225,3490.6,3490.1,2.86524]
[1721546043521,0.59762225,3490.5,3490.1,2.86524]
[1721546046434,0.59762225,3490.4,3490.1,2.86524]
[1721546048417,0.59762225,3490.3,3490.1,2.86524]
[1721546051535,0.59762225,3490.2,3490.1,2.86524]
[1721546052352,0.59762225,3490.3,3490.1,2.86524]
[1721546053561,0.59762225,3490.2,3490.1,2.86524]
[1721546055458,0.59762225,3490.2,3490.1,3.67024]
[1721546059245,0.59762225,3490.2,3490.1,4.323796]
[1721546060270,0.59762225,3490.2,3490.1,3.67024]
[1721546060470,0.8970545,3490.3,3490.1,3.67024]
[1721546060678,0.59923722,3490.2,3490.1,3.67024]
[1721546060999,0.8970545,3490.3,3490.1,2.86524]
[1721546064790,0.8970545,3490.2,3490.1,2.86524]
[1721546065852,0.8970545,3490.3,3490.1,2.86524]
[1721546066089,0.8970545,3490.3,3490.1,3.518804]
[1721546066256,0.8970545,3490.3,3490.2,2.86516]
[1721546066891,0.8970545,3490.3,3490.1,0.653564]
[1721546067089,0.8970545,3490.3,3490.0,2.86527]
[1721546067246,0.59926874,3490.1,3490.0,2.86527]
[1721546079364,0.59926874,3490.1,3490.0,5.73059]
[1721546079579,0.59926874,3490.2,3490.1,2.86524]
[1721546079776,0.59926874,3490.2,3490.1,3.67024]
[1721546080164,0.8970545,3490.3,3490.1,3.67024]
[1721546080564,0.8970545,3490.3,3490.2,2.86516]
[1721546091630,1.19428412,3490.4,3490.2,2.86516]
[1721546091776,1.19428412,3490.4,3490.0,2.86527]
[1721546091973,0.89930703,3490.2,3490.1,2.86523]
[1721546092620,0.89930703,3490.3,3490.2,2.86516]
[1721546094177,1.19428412,3490.4,3490.2,2.86516]
[1721546094693,0.89937651,3490.3,3490.2,2.86516]
[1721546094892,0.15965687,3490.3,3490.2,2.86516]
[1721546095291,0.89937759,3490.3,3490.2,2.86516]
[1721546095820,0.1596509,3490.3,3490.2,2.86516]
[1721546096030,0.89938787,3490.3,3490.2,2.86516]
[1721546096314,0.15965205,3490.3,3490.2,2.86516]
[1721546096693,0.8993975,3490.3,3490.2,2.86516]
[1721546100691,2.50258148,3490.3,3490.2,2.86516]
[1721546101531,3.24244737,3490.3,3490.2,2.86516]
[1721546102081,2.50262418,3490.3,3490.2,2.86516]
[1721546103336,2.50262418,3490.3,3490.1,2.86524]
[1721546103618,0.90016498,3490.2,3490.1,2.86524]
[1721546104213,0.90016498,3490.2,3489.8,2.86543]
[1721546104417,2.3429,3490.3,3489.9,2.86539]
[1721546104418,0.90016498,3490.1,3489.9,2.86539]
[1721546106415,0.90016498,3490.1,3490.0,2.86532]
[1721546106756,0.90006231,3490.1,3490.0,2.86532]
[1721546107246,0.90006231,3490.2,3490.1,2.86524]
[1721546108075,0.90006231,3490.2,3490.1,6.53548]
[1721546108926,1.19428412,3490.4,3490.2,2.86516]
[1721546110016,1.35405024,3490.3,3490.2,2.86516]
[1721546110330,1.19428412,3490.3,3490.2,2.86516]
[1721546112033,0.15976612,3490.3,3490.2,2.86516]
[1721546112266,1.19428412,3490.4,3490.2,2.86516]
[1721546113056,1.35405024,3490.4,3490.3,2.86508]
[1721546113267,1.19428412,3490.4,3490.3,2.86508]
[1721546116340,0.15976612,3490.4,3490.3,2.86508]
[1721546116541,1.50129914,3490.5,3490.3,2.86508]
[1721546116741,0.15976612,3490.4,3490.3,2.86508]
[1721546116936,1.50129914,3490.5,3490.3,2.86508]
[1721546117240,0.15976612,3490.4,3490.3,2.86508]
[1721546117436,1.50129914,3490.5,3490.3,2.86508]
[1721546117655,0.15976612,3490.4,3490.3,2.86508]
[1721546117851,1.50129914,3490.5,3490.3,2.86508]
[1721546118075,0.15976612,3490.4,3490.3,2.86508]
[1721546118274,1.50129914,3490.5,3490.3,2.86508]
[1721546118581,0.15976612,3490.4,3490.3,2.86508]
[1721546118880,1.20077841,3490.4,3490.3,2.86508]
[1721546119862,1.36054453,3490.4,3490.3,2.86508]
[1721546120398,1.20077841,3490.4,3490.3,2.86508]
[1721546120680,1.36054453,3490.4,3490.3,2.86508]
[1721546121255,1.20077841,3490.4,3490.3,2.86508]
[1721546121942,1.36054453,3490.4,3490.3,2.86508]
[1721546122491,1.20077841,3490.4,3490.3,2.86508]
[1721546123185,1.36054453,3490.4,3490.3,2.86508]
[1721546123782,1.20077841,3490.4,3490.3,5.73016]
[1721546123955,0.15976612,3490.4,3490.3,5.73016]
[1721546124293,0.90031849,3490.4,3490.3,2.86508]
[1721546124643,0.90031849,3490.4,3490.1,3.67018]
[1721546124644,0.1597528,3490.4,3490.1,0.805]
[1721546124849,0.1597528,3490.4,3490.3,2.86508]
[1721546127593,2.3429,3490.8,3490.3,6.81351666]
[1721546127594,0.600215,3490.6,3490.3,6.81351666]
[1721546127745,0.600215,3490.8,3490.7,5.7295]
[1721546127951,0.600215,3490.8,3490.7,6.5345]
[1721546128261,0.600215,3491.0,3490.9,5.72918]
[1721546128465,0.600215,3491.1,3491.0,5.729]
[1721546129495,0.90032251,3491.3,3491.1,2.86442]
[1721546129496,0.600215,3491.2,3491.1,2.86442]
[1721546131264,0.600215,3491.2,3491.1,5.72884]
[1721546131589,0.600215,3491.3,3491.2,2.86434]
[1721546132185,0.600215,3491.3,3491.2,3.66934]
[1721546132392,0.600215,3491.4,3491.3,2.86426]